[Event "Titled Tuesday Blitz November 16 2021"]
[White "Yanchenko, Roman"]
[Black "Tabatabaei, M. Amin"]
[WhiteFideId "4137329"]
[BlackFideId "12521213"]
[WhiteElo "2514"]
[BlackElo "2555"]
[Result "0-1"]
[Round "09"]
[TimeControl "180+1"]
[Date "2021.11.16"]
[WhiteClock "0:00:01"]
[BlackClock "0:00:32"]

1. d4 {[%clk 0:03:00]}  Nf6 {[%clk 0:02:56]} 2. c4 {[%clk 0:03:01]}  g6 {[%clk 0:02:57]} 3. Nf3 {[%clk 0:03:01]}  Bg7 {[%clk 0:02:57]} 4. Nc3 {[%clk 0:03:01]}  O-O {[%clk 0:02:57]} 5. Bf4 {[%clk 0:03:01]}  d5 {[%clk 0:02:53]} 6. e3 {[%clk 0:03:01]}  c5 {[%clk 0:02:52]} 7. dxc5 {[%clk 0:03:02]}  Nbd7 {[%clk 0:02:50]} 8. cxd5 {[%clk 0:03:01]}  Qa5 {[%clk 0:02:47]} 9. Be5 {[%clk 0:03:01]}  Nxe5 {[%clk 0:02:42]} 10. Nxe5 {[%clk 0:03:02]}  Ne4 {[%clk 0:02:20]} 11. Qd4 {[%clk 0:03:01]}  Nxc5 {[%clk 0:02:02]} 12. b4 {[%clk 0:03:01]}  Bxe5 {[%clk 0:02:01]} 13. bxa5 {[%clk 0:02:57]}  Bxd4 {[%clk 0:02:02]} 14. exd4 {[%clk 0:02:57]}  Nd7 {[%clk 0:02:03]} 15. g3 {[%clk 0:02:44]}  b6 {[%clk 0:02:01]} 16. axb6 {[%clk 0:02:41]}  Nxb6 {[%clk 0:02:02]} 17. Bg2 {[%clk 0:02:41]}  Bb7 {[%clk 0:02:02]} 18. O-O {[%clk 0:02:33]}  Rfd8 {[%clk 0:02:03]} 19. Rfe1 {[%clk 0:02:22]}  Kf8 {[%clk 0:02:03]} 20. d6 {[%clk 0:02:22]}  Rd7 {[%clk 0:01:51]} 21. dxe7+ {[%clk 0:02:10]}  Ke8 {[%clk 0:01:51]} 22. Bxb7 {[%clk 0:01:14]}  Rxb7 {[%clk 0:01:52]} 23. Nb5 {[%clk 0:01:11]}  Nc4 {[%clk 0:01:52]} 24. Rac1 {[%clk 0:01:01]}  Rxb5 {[%clk 0:01:52]} 25. Rxc4 {[%clk 0:01:01]}  Rb7 {[%clk 0:01:53]} 26. d5 {[%clk 0:00:47]}  Rd7 {[%clk 0:01:51]} 27. Rc5 {[%clk 0:00:42]}  Rb8 {[%clk 0:01:47]} 28. a4 {[%clk 0:00:40]}  a6 {[%clk 0:01:45]} 29. Kg2 {[%clk 0:00:35]}  Rxe7 {[%clk 0:01:45]} 30. Rxe7+ {[%clk 0:00:34]}  Kxe7 {[%clk 0:01:46]} 31. Rc7+ {[%clk 0:00:29]}  Kf6 {[%clk 0:01:43]} 32. Rc6+ {[%clk 0:00:27]}  Ke5 {[%clk 0:01:43]} 33. d6 {[%clk 0:00:24]}  a5 {[%clk 0:01:38]} 34. d7 {[%clk 0:00:19]}  Rd8 {[%clk 0:01:38]} 35. Ra6 {[%clk 0:00:19]}  Rxd7 {[%clk 0:01:36]} 36. Rxa5+ {[%clk 0:00:20]}  Kf6 {[%clk 0:01:35]} 37. Rb5 {[%clk 0:00:18]}  Rd2 {[%clk 0:01:34]} 38. h4 {[%clk 0:00:17]}  Ra2 {[%clk 0:01:33]} 39. a5 {[%clk 0:00:17]}  h6 {[%clk 0:01:24]} 40. Kf3 {[%clk 0:00:17]}  Ke6 {[%clk 0:01:22]} 41. h5 {[%clk 0:00:15]}  g5 {[%clk 0:01:20]} 42. Rb6+ {[%clk 0:00:13]}  Kf5 {[%clk 0:01:20]} 43. g4+ {[%clk 0:00:13]}  Ke5 {[%clk 0:01:20]} 44. a6 {[%clk 0:00:08]}  Ra3+ {[%clk 0:01:20]} 45. Kg2 {[%clk 0:00:09]}  Kf4 {[%clk 0:01:17]} 46. Rb4+ {[%clk 0:00:03]}  Ke5 {[%clk 0:01:17]} 47. Rb6 {[%clk 0:00:04]}  Kf4 {[%clk 0:01:18]} 48. Rxh6 {[%clk 0:00:04]}  Kxg4 {[%clk 0:01:18]} 49. Kf1 {[%clk 0:00:04]}  f5 {[%clk 0:01:16]} 50. Ke2 {[%clk 0:00:04]}  Ra2+ {[%clk 0:01:14]} 51. Ke3 {[%clk 0:00:04]}  f4+ {[%clk 0:01:15]} 52. Ke4 {[%clk 0:00:04]}  Rxf2 {[%clk 0:01:15]} 53. Rh7 {[%clk 0:00:04]}  Re2+ {[%clk 0:01:14]} 54. Kd3 {[%clk 0:00:04]}  Ra2 {[%clk 0:01:15]} 55. a7 {[%clk 0:00:04]}  f3 {[%clk 0:01:15]} 56. h6 {[%clk 0:00:02]}  f2 {[%clk 0:00:31]} 57. Rf7 {[%clk 0:00:01]}  Kg3 {[%clk 0:00:32]} 0-1


[Site "https://www.chess.com"]

[Event "Titled Tuesday Blitz November 16 2021"]
[White "Yoo, Christopher Woojin"]
[Black "Alavkin, Arseny"]
[WhiteFideId "30909694"]
[BlackFideId "4120612"]
[WhiteElo "2105"]
[BlackElo "2391"]
[Result "1/2-1/2"]
[Round "09"]
[TimeControl "180+1"]
[Date "2021.11.16"]
[WhiteClock "0:00:07"]
[BlackClock "0:00:14"]

1. e4 {[%clk 0:03:00]}  c5 {[%clk 0:02:58]} 2. Nf3 {[%clk 0:02:59]}  Nc6 {[%clk 0:02:59]} 3. Nc3 {[%clk 0:02:53]}  g6 {[%clk 0:02:57]} 4. Bb5 {[%clk 0:02:52]}  Bg7 {[%clk 0:02:55]} 5. O-O {[%clk 0:02:52]}  Nd4 {[%clk 0:02:46]} 6. Nxd4 {[%clk 0:02:51]}  cxd4 {[%clk 0:02:47]} 7. Ne2 {[%clk 0:02:52]}  a6 {[%clk 0:02:46]} 8. Ba4 {[%clk 0:02:51]}  b5 {[%clk 0:02:46]} 9. Bb3 {[%clk 0:02:50]}  Bb7 {[%clk 0:02:46]} 10. d3 {[%clk 0:02:50]}  Nf6 {[%clk 0:02:43]} 11. Nxd4 {[%clk 0:02:45]}  O-O {[%clk 0:02:40]} 12. a4 {[%clk 0:02:40]}  b4 {[%clk 0:02:39]} 13. Nf3 {[%clk 0:02:37]}  a5 {[%clk 0:02:38]} 14. e5 {[%clk 0:02:32]}  Nd5 {[%clk 0:02:33]} 15. d4 {[%clk 0:02:28]}  Rc8 {[%clk 0:02:33]} 16. Re1 {[%clk 0:02:27]}  d6 {[%clk 0:02:26]} 17. Bg5 {[%clk 0:02:19]}  Re8 {[%clk 0:02:06]} 18. Qd2 {[%clk 0:02:17]}  Nb6 {[%clk 0:02:03]} 19. Qf4 {[%clk 0:02:12]}  Nc4 {[%clk 0:01:50]} 20. exd6 {[%clk 0:01:52]}  Qxd6 {[%clk 0:01:30]} 21. Ne5 {[%clk 0:01:48]}  Bd5 {[%clk 0:01:20]} 22. Nxc4 {[%clk 0:00:55]}  Qxf4 {[%clk 0:01:18]} 23. Bxf4 {[%clk 0:00:56]}  Bxc4 {[%clk 0:01:19]} 24. Rad1 {[%clk 0:00:55]}  Bxb3 {[%clk 0:01:06]} 25. cxb3 {[%clk 0:00:56]}  e6 {[%clk 0:01:07]} 26. Rd2 {[%clk 0:00:44]}  Red8 {[%clk 0:01:06]} 27. Be3 {[%clk 0:00:43]}  Rd5 {[%clk 0:01:01]} 28. Kf1 {[%clk 0:00:42]}  e5 {[%clk 0:00:32]} 29. dxe5 {[%clk 0:00:41]}  Rxd2 {[%clk 0:00:33]} 30. Bxd2 {[%clk 0:00:41]}  Rc2 {[%clk 0:00:34]} 31. Bg5 {[%clk 0:00:33]}  Rxb2 {[%clk 0:00:27]} 32. Bf6 {[%clk 0:00:29]}  h6 {[%clk 0:00:14]} 33. Re3 {[%clk 0:00:21]}  Bxf6 {[%clk 0:00:11]} 34. exf6 {[%clk 0:00:21]}  g5 {[%clk 0:00:12]} 35. Re5 {[%clk 0:00:14]}  Rxb3 {[%clk 0:00:11]} 36. Rxa5 {[%clk 0:00:15]}  Ra3 {[%clk 0:00:11]} 37. Ke2 {[%clk 0:00:08]}  Ra2+ {[%clk 0:00:11]} 38. Ke3 {[%clk 0:00:08]}  b3 {[%clk 0:00:11]} 39. Rb5 {[%clk 0:00:08]}  Rxa4 {[%clk 0:00:11]} 40. Rxb3 {[%clk 0:00:07]}  Kh7 {[%clk 0:00:12]} 41. Rb6 {[%clk 0:00:06]}  Kg6 {[%clk 0:00:12]} 42. h3 {[%clk 0:00:04]}  Ra3+ {[%clk 0:00:12]} 43. Ke2 {[%clk 0:00:04]}  Ra2+ {[%clk 0:00:13]} 44. Kf3 {[%clk 0:00:04]}  Ra3+ {[%clk 0:00:13]} 45. Ke4 {[%clk 0:00:05]}  Ra2 {[%clk 0:00:13]} 46. Ke3 {[%clk 0:00:05]}  Ra3+ {[%clk 0:00:13]} 47. Ke2 {[%clk 0:00:06]}  Ra2+ {[%clk 0:00:13]} 48. Kf1 {[%clk 0:00:07]}  Ra1+ {[%clk 0:00:13]} 49. Ke2 {[%clk 0:00:07]}  Ra2+ {[%clk 0:00:14]} 1/2-1/2


[Site "https://www.chess.com"]

[Event "Titled Tuesday Blitz November 16 2021"]
[White "Zelbel, Patrick"]
[Black "Tahbaz, Arash"]
[WhiteFideId "24624322"]
[BlackFideId "12528846"]
[WhiteElo "2493"]
[BlackElo "2377"]
[Result "1-0"]
[Round "09"]
[TimeControl "180+1"]
[Date "2021.11.16"]
[WhiteClock "0:00:13"]
[BlackClock "0:00:04"]

1. e4 {[%clk 0:03:00]}  g6 {[%clk 0:02:59]} 2. d4 {[%clk 0:02:59]}  Bg7 {[%clk 0:03:00]} 3. Nc3 {[%clk 0:02:56]}  d6 {[%clk 0:03:00]} 4. Nf3 {[%clk 0:02:54]}  Nd7 {[%clk 0:02:57]} 5. a4 {[%clk 0:02:51]}  e5 {[%clk 0:02:52]} 6. Bg5 {[%clk 0:02:47]}  Ngf6 {[%clk 0:02:52]} 7. dxe5 {[%clk 0:02:44]}  dxe5 {[%clk 0:02:53]} 8. Bc4 {[%clk 0:02:43]}  O-O {[%clk 0:02:52]} 9. O-O {[%clk 0:02:43]}  a5 {[%clk 0:02:52]} 10. Qd2 {[%clk 0:02:40]}  c6 {[%clk 0:02:48]} 11. Rad1 {[%clk 0:02:37]}  Qe7 {[%clk 0:02:49]} 12. h3 {[%clk 0:02:33]}  Nc5 {[%clk 0:02:44]} 13. Rfe1 {[%clk 0:02:28]}  Be6 {[%clk 0:02:35]} 14. Nxe5 {[%clk 0:02:17]}  Bxh3 {[%clk 0:02:35]} 15. Nd3 {[%clk 0:01:46]}  Nxd3 {[%clk 0:02:21]} 16. cxd3 {[%clk 0:01:46]}  Bg4 {[%clk 0:02:08]} 17. e5 {[%clk 0:01:32]}  Qd8 {[%clk 0:01:36]} 18. exf6 {[%clk 0:01:12]}  Bxf6 {[%clk 0:01:37]} 19. Bxf6 {[%clk 0:01:12]}  Qxf6 {[%clk 0:01:38]} 20. Ne4 {[%clk 0:01:09]}  Qd4 {[%clk 0:01:38]} 21. Qf4 {[%clk 0:01:05]}  Bf5 {[%clk 0:01:31]} 22. Rd2 {[%clk 0:00:50]}  Rae8 {[%clk 0:01:10]} 23. Qh4 {[%clk 0:00:42]}  Kg7 {[%clk 0:01:09]} 24. Re3 {[%clk 0:00:38]}  b5 {[%clk 0:00:52]} 25. axb5 {[%clk 0:00:34]}  cxb5 {[%clk 0:00:53]} 26. Bxb5 {[%clk 0:00:33]}  Rb8 {[%clk 0:00:54]} 27. Bc4 {[%clk 0:00:30]}  Rxb2 {[%clk 0:00:54]} 28. Rxb2 {[%clk 0:00:29]}  Qxb2 {[%clk 0:00:55]} 29. Nd6 {[%clk 0:00:24]}  a4 {[%clk 0:00:25]} 30. Nxf5+ {[%clk 0:00:16]}  gxf5 {[%clk 0:00:26]} 31. Rh3 {[%clk 0:00:16]}  Qc1+ {[%clk 0:00:26]} 32. Kh2 {[%clk 0:00:15]}  h6 {[%clk 0:00:27]} 33. Rg3+ {[%clk 0:00:15]}  Kh7 {[%clk 0:00:27]} 34. Qf6 {[%clk 0:00:14]}  Qb2 {[%clk 0:00:04]} 35. Qxb2 {[%clk 0:00:13]} 1-0


[Site "https://www.chess.com"]

[Event "Titled Tuesday Blitz November 16 2021"]
[White "Zhigalko, Sergei"]
[Black "Stribuk, Artiom"]
[WhiteFideId "13502956"]
[BlackFideId "13515659"]
[WhiteElo "2662"]
[BlackElo "2224"]
[Result "0-1"]
[Round "09"]
[TimeControl "180+1"]
[Date "2021.11.16"]
[WhiteClock "0:00:02"]
[BlackClock "0:00:06"]

1. e4 {[%clk 0:03:00]}  c5 {[%clk 0:02:48]} 2. Nf3 {[%clk 0:03:00]}  Nc6 {[%clk 0:02:46]} 3. c3 {[%clk 0:03:00]}  Nf6 {[%clk 0:02:45]} 4. e5 {[%clk 0:03:01]}  Nd5 {[%clk 0:02:45]} 5. Bc4 {[%clk 0:03:01]}  Nb6 {[%clk 0:02:42]} 6. Bb3 {[%clk 0:03:02]}  c4 {[%clk 0:02:41]} 7. Bc2 {[%clk 0:03:02]}  d6 {[%clk 0:02:42]} 8. exd6 {[%clk 0:03:01]}  Qxd6 {[%clk 0:02:43]} 9. O-O {[%clk 0:03:02]}  Bg4 {[%clk 0:02:43]} 10. Re1 {[%clk 0:03:02]}  O-O-O {[%clk 0:02:38]} 11. b3 {[%clk 0:02:57]}  Qf6 {[%clk 0:02:38]} 12. Be4 {[%clk 0:02:41]}  Ne5 {[%clk 0:02:23]} 13. bxc4 {[%clk 0:02:35]}  Bxf3 {[%clk 0:01:52]} 14. gxf3 {[%clk 0:02:28]}  Nd3 {[%clk 0:01:49]} 15. Bxd3 {[%clk 0:00:58]}  Rxd3 {[%clk 0:01:49]} 16. Qe2 {[%clk 0:00:55]}  Qxf3 {[%clk 0:01:29]} 17. Qxf3 {[%clk 0:00:48]}  Rxf3 {[%clk 0:01:30]} 18. c5 {[%clk 0:00:49]}  Nd5 {[%clk 0:01:21]} 19. d4 {[%clk 0:00:35]}  Nxc3 {[%clk 0:00:52]} 20. Kg2 {[%clk 0:00:35]}  Rd3 {[%clk 0:00:52]} 21. Nxc3 {[%clk 0:00:32]}  Rxc3 {[%clk 0:00:53]} 22. Bf4 {[%clk 0:00:25]}  e6 {[%clk 0:00:48]} 23. Rab1 {[%clk 0:00:25]}  Be7 {[%clk 0:00:43]} 24. Re3 {[%clk 0:00:22]}  Rxe3 {[%clk 0:00:35]} 25. fxe3 {[%clk 0:00:23]}  Bd8 {[%clk 0:00:35]} 26. Kf3 {[%clk 0:00:18]}  Bc7 {[%clk 0:00:32]} 27. Rg1 {[%clk 0:00:18]}  g6 {[%clk 0:00:29]} 28. h4 {[%clk 0:00:18]}  Rd8 {[%clk 0:00:23]} 29. Ke4 {[%clk 0:00:04]}  Rd5 {[%clk 0:00:22]} 30. Bxc7 {[%clk 0:00:02]}  Kxc7 {[%clk 0:00:23]} 31. Rf1 {[%clk 0:00:02]}  f5+ {[%clk 0:00:21]} 32. Kf4 {[%clk 0:00:02]}  b6 {[%clk 0:00:18]} 33. cxb6+ {[%clk 0:00:01]}  axb6 {[%clk 0:00:18]} 34. Rc1+ {[%clk 0:00:02]}  Kb7 {[%clk 0:00:18]} 35. Rc2 {[%clk 0:00:02]}  Ra5 {[%clk 0:00:18]} 36. Kg5 {[%clk 0:00:02]}  e5 {[%clk 0:00:13]} 37. Kh6 {[%clk 0:00:02]}  exd4 {[%clk 0:00:13]} 38. exd4 {[%clk 0:00:03]}  Rd5 {[%clk 0:00:08]} 39. Rd2 {[%clk 0:00:04]}  Rd7 {[%clk 0:00:09]} 40. d5 {[%clk 0:00:04]}  Kc7 {[%clk 0:00:09]} 41. h5 {[%clk 0:00:04]}  gxh5 {[%clk 0:00:05]} 42. Kxh5 {[%clk 0:00:05]}  Kd6 {[%clk 0:00:06]} 43. Kg5 {[%clk 0:00:05]}  Rf7 {[%clk 0:00:07]} 44. Kf4 {[%clk 0:00:05]}  h5 {[%clk 0:00:07]} 45. Rd1 {[%clk 0:00:05]}  h4 {[%clk 0:00:07]} 46. Rd3 {[%clk 0:00:06]}  h3 {[%clk 0:00:07]} 47. Rxh3 {[%clk 0:00:06]}  Kxd5 {[%clk 0:00:07]} 48. Rb3 {[%clk 0:00:06]}  Kc5 {[%clk 0:00:08]} 49. a4 {[%clk 0:00:06]}  Ra7 {[%clk 0:00:07]} 50. Rb5+ {[%clk 0:00:07]}  Kc6 {[%clk 0:00:07]} 51. Rxf5 {[%clk 0:00:07]}  Rxa4+ {[%clk 0:00:07]} 52. Ke3 {[%clk 0:00:08]}  Rc4 {[%clk 0:00:07]} 53. Kd3 {[%clk 0:00:09]}  Rc5 {[%clk 0:00:08]} 54. Rf8 {[%clk 0:00:07]}  Kb5 {[%clk 0:00:08]} 55. Rb8 {[%clk 0:00:04]}  Ka5 {[%clk 0:00:08]} 56. Kd4 {[%clk 0:00:04]}  Rc1 {[%clk 0:00:08]} 57. Kd3 {[%clk 0:00:03]}  b5 {[%clk 0:00:08]} 58. Kd2 {[%clk 0:00:04]}  Rc7 {[%clk 0:00:08]} 59. Kd3 {[%clk 0:00:03]}  Ka4 {[%clk 0:00:09]} 60. Ra8+ {[%clk 0:00:02]}  Kb3 {[%clk 0:00:09]} 61. Rb8 {[%clk 0:00:02]}  Rd7+ {[%clk 0:00:08]} 62. Ke4 {[%clk 0:00:01]}  b4 {[%clk 0:00:09]} 63. Ke5 {[%clk 0:00:01]}  Ka3 {[%clk 0:00:09]} 64. Ke6 {[%clk 0:00:01]}  Rd1 {[%clk 0:00:10]} 65. Ke5 {[%clk 0:00:02]}  b3 {[%clk 0:00:10]} 66. Ra8+ {[%clk 0:00:01]}  Kb2 {[%clk 0:00:10]} 67. Ke4 {[%clk 0:00:02]}  Kb1 {[%clk 0:00:10]} 68. Ke3 {[%clk 0:00:02]}  b2 {[%clk 0:00:10]} 69. Ke2 {[%clk 0:00:02]}  Rd7 {[%clk 0:00:11]} 70. Rb8 {[%clk 0:00:02]}  Rd4 {[%clk 0:00:11]} 71. Ke3 {[%clk 0:00:02]}  Rd5 {[%clk 0:00:11]} 72. Ke4 {[%clk 0:00:02]}  Rd7 {[%clk 0:00:08]} 73. Ke3 {[%clk 0:00:02]}  Kc1 {[%clk 0:00:08]} 74. Rc8+ {[%clk 0:00:02]}  Kb1 {[%clk 0:00:07]} 75. Rb8 {[%clk 0:00:02]}  Rd5 {[%clk 0:00:06]} 76. Ke2 {[%clk 0:00:02]}  Kc2 {[%clk 0:00:05]} 77. Ke3 {[%clk 0:00:02]}  b1=Q {[%clk 0:00:05]} 78. Rxb1 {[%clk 0:00:02]}  Kxb1 {[%clk 0:00:06]} 0-1


[Site "https://www.chess.com"]

[Event "Titled Tuesday Blitz November 16 2021"]
[White "Aditya Mittal"]
[Black "Aloma Vidal, Robert"]
[WhiteFideId "35042025"]
[BlackFideId "2260409"]
[WhiteElo "2245"]
[BlackElo "2435"]
[Result "1-0"]
[Round "10"]
[TimeControl "180+1"]
[Date "2021.11.16"]
[WhiteClock "0:00:21"]
[BlackClock "0:00:18"]

1. d4 {[%clk 0:03:00]}  d5 {[%clk 0:02:59]} 2. c4 {[%clk 0:03:01]}  c6 {[%clk 0:02:58]} 3. Nc3 {[%clk 0:03:02]}  Nf6 {[%clk 0:02:57]} 4. cxd5 {[%clk 0:03:02]}  cxd5 {[%clk 0:02:57]} 5. f3 {[%clk 0:03:03]}  Nc6 {[%clk 0:02:55]} 6. e4 {[%clk 0:03:03]}  dxe4 {[%clk 0:02:55]} 7. d5 {[%clk 0:03:04]}  Ne5 {[%clk 0:02:55]} 8. fxe4 {[%clk 0:03:05]}  Ng6 {[%clk 0:02:39]} 9. Nf3 {[%clk 0:03:03]}  e6 {[%clk 0:02:35]} 10. Bb5+ {[%clk 0:02:55]}  Bd7 {[%clk 0:02:35]} 11. dxe6 {[%clk 0:02:55]}  fxe6 {[%clk 0:02:35]} 12. Qb3 {[%clk 0:02:53]}  Qe7 {[%clk 0:02:17]} 13. Bg5 {[%clk 0:02:45]}  h6 {[%clk 0:02:14]} 14. Bxf6 {[%clk 0:02:36]}  gxf6 {[%clk 0:02:15]} 15. Bxd7+ {[%clk 0:01:44]}  Qxd7 {[%clk 0:02:14]} 16. Rd1 {[%clk 0:01:44]}  Qc8 {[%clk 0:02:08]} 17. Nd4 {[%clk 0:01:37]}  Kf7 {[%clk 0:01:47]} 18. Rf1 {[%clk 0:01:19]}  Bc5 {[%clk 0:01:22]} 19. e5 {[%clk 0:00:50]}  Nxe5 {[%clk 0:01:11]} 20. Ne4 {[%clk 0:00:50]}  Be7 {[%clk 0:01:10]} 21. Rxf6+ {[%clk 0:00:46]}  Bxf6 {[%clk 0:00:59]} 22. Nd6+ {[%clk 0:00:46]}  Kg6 {[%clk 0:00:59]} 23. Qg3+ {[%clk 0:00:28]}  Kh7 {[%clk 0:01:00]} 24. Nxc8 {[%clk 0:00:27]}  Raxc8 {[%clk 0:01:00]} 25. Qf4 {[%clk 0:00:23]}  Kg6 {[%clk 0:00:41]} 26. Qe4+ {[%clk 0:00:22]}  Kf7 {[%clk 0:00:34]} 27. Qxb7+ {[%clk 0:00:22]}  Be7 {[%clk 0:00:34]} 28. Ke2 {[%clk 0:00:21]}  Rb8 {[%clk 0:00:29]} 29. Rf1+ {[%clk 0:00:21]}  Kg6 {[%clk 0:00:18]} 30. Qe4+ {[%clk 0:00:21]} 1-0


[Site "https://www.chess.com"]

[Event "Titled Tuesday Blitz November 16 2021"]
[White "Baskin, Robert"]
[Black "vizumatv4hoda"]
[WhiteFideId "24662402"]
[WhiteElo "2488"]
[BlackElo "2767"]
[Result "0-1"]
[Round "10"]
[TimeControl "180+1"]
[Date "2021.11.16"]
[WhiteClock "0:00:04"]
[BlackClock "0:01:22"]

1. e4 {[%clk 0:03:00]}  c5 {[%clk 0:03:00]} 2. Nf3 {[%clk 0:03:00]}  g6 {[%clk 0:03:00]} 3. d4 {[%clk 0:02:59]}  Bg7 {[%clk 0:03:01]} 4. dxc5 {[%clk 0:02:57]}  Qa5+ {[%clk 0:03:01]} 5. c3 {[%clk 0:02:54]}  Qxc5 {[%clk 0:03:02]} 6. Be3 {[%clk 0:02:53]}  Qc7 {[%clk 0:03:02]} 7. Na3 {[%clk 0:02:48]}  Nf6 {[%clk 0:03:03]} 8. e5 {[%clk 0:02:28]}  Ng4 {[%clk 0:03:02]} 9. Bd4 {[%clk 0:02:28]}  O-O {[%clk 0:02:46]} 10. h3 {[%clk 0:02:21]}  Nh6 {[%clk 0:02:35]} 11. Bd3 {[%clk 0:02:20]}  Nc6 {[%clk 0:02:33]} 12. Nc4 {[%clk 0:02:02]}  b5 {[%clk 0:02:24]} 13. Ne3 {[%clk 0:02:01]}  Nxe5 {[%clk 0:02:24]} 14. Nxe5 {[%clk 0:01:35]}  Bxe5 {[%clk 0:02:25]} 15. Bxb5 {[%clk 0:01:34]}  Rb8 {[%clk 0:02:22]} 16. Bxe5 {[%clk 0:01:20]}  Qxe5 {[%clk 0:02:21]} 17. Be2 {[%clk 0:01:21]}  Rxb2 {[%clk 0:02:17]} 18. O-O {[%clk 0:01:20]}  Qxc3 {[%clk 0:02:12]} 19. Nd5 {[%clk 0:01:20]}  Qe5 {[%clk 0:02:11]} 20. Re1 {[%clk 0:01:19]}  e6 {[%clk 0:02:07]} 21. Ne7+ {[%clk 0:01:17]}  Kg7 {[%clk 0:02:04]} 22. Nxc8 {[%clk 0:01:08]}  Rxc8 {[%clk 0:02:05]} 23. Ba6 {[%clk 0:01:08]}  Qf6 {[%clk 0:02:01]} 24. Rf1 {[%clk 0:00:42]}  Rcc2 {[%clk 0:02:01]} 25. Qxd7 {[%clk 0:00:36]}  Rxf2 {[%clk 0:02:00]} 26. Bb7 {[%clk 0:00:36]}  Rbd2 {[%clk 0:01:43]} 27. Qa4 {[%clk 0:00:27]}  Nf5 {[%clk 0:01:29]} 28. Bf3 {[%clk 0:00:16]}  Nh4 {[%clk 0:01:22]} 29. Rxf2 {[%clk 0:00:06]}  Qxa1+ {[%clk 0:01:22]} 30. Rf1 {[%clk 0:00:05]}  Nxf3+ {[%clk 0:01:22]} 31. gxf3 {[%clk 0:00:05]}  Qe5 {[%clk 0:01:23]} 32. Qg4 {[%clk 0:00:04]}  Qh2# {[%clk 0:01:22]} 0-1


[Site "https://www.chess.com"]

[Event "Titled Tuesday Blitz November 16 2021"]
[White "Djokic, Mihailo"]
[Black "Nagy, Gabor"]
[WhiteFideId "976440"]
[BlackFideId "737119"]
[WhiteElo "2008"]
[BlackElo "2534"]
[Result "0-1"]
[Round "10"]
[TimeControl "180+1"]
[Date "2021.11.16"]
[WhiteClock "0:00:01"]
[BlackClock "0:01:30"]

1. e4 {[%clk 0:03:00]}  g6 {[%clk 0:02:58]} 2. d4 {[%clk 0:03:01]}  Bg7 {[%clk 0:02:57]} 3. Nc3 {[%clk 0:03:01]}  d6 {[%clk 0:02:54]} 4. Be3 {[%clk 0:03:01]}  a6 {[%clk 0:02:52]} 5. Qd2 {[%clk 0:02:59]}  b5 {[%clk 0:02:51]} 6. a4 {[%clk 0:02:59]}  b4 {[%clk 0:02:47]} 7. Nce2 {[%clk 0:02:59]}  a5 {[%clk 0:02:46]} 8. Ng3 {[%clk 0:03:00]}  h5 {[%clk 0:02:45]} 9. h4 {[%clk 0:02:57]}  Nf6 {[%clk 0:02:43]} 10. Nf3 {[%clk 0:02:53]}  Ng4 {[%clk 0:02:39]} 11. Bg5 {[%clk 0:02:49]}  O-O {[%clk 0:02:39]} 12. Bc4 {[%clk 0:02:47]}  Nd7 {[%clk 0:02:36]} 13. O-O {[%clk 0:02:37]}  Nb6 {[%clk 0:02:35]} 14. Bb3 {[%clk 0:02:35]}  Ba6 {[%clk 0:02:32]} 15. Rfe1 {[%clk 0:02:34]}  Qd7 {[%clk 0:02:30]} 16. Nh2 {[%clk 0:01:53]}  Nxh2 {[%clk 0:02:28]} 17. Kxh2 {[%clk 0:01:53]}  c5 {[%clk 0:02:24]} 18. Bh6 {[%clk 0:01:47]}  Bxd4 {[%clk 0:02:22]} 19. Nf5 {[%clk 0:01:26]}  Be5+ {[%clk 0:02:17]} 20. f4 {[%clk 0:01:25]}  Bxb2 {[%clk 0:02:15]} 21. Bxf8 {[%clk 0:01:17]}  Rxf8 {[%clk 0:02:16]} 22. Nh6+ {[%clk 0:01:02]}  Kg7 {[%clk 0:02:15]} 23. f5 {[%clk 0:00:59]}  Be5+ {[%clk 0:02:14]} 24. Kh1 {[%clk 0:00:58]}  c4 {[%clk 0:02:14]} 25. Ba2 {[%clk 0:00:47]}  Rh8 {[%clk 0:02:07]} 26. Nxf7 {[%clk 0:00:39]}  Kxf7 {[%clk 0:02:08]} 27. fxg6+ {[%clk 0:00:39]}  Kg7 {[%clk 0:02:07]} 28. Rad1 {[%clk 0:00:38]}  Qg4 {[%clk 0:02:04]} 29. Qg5 {[%clk 0:00:35]}  Qxg5 {[%clk 0:02:04]} 30. hxg5 {[%clk 0:00:36]}  Nxa4 {[%clk 0:02:04]} 31. Rd5 {[%clk 0:00:33]}  Nc5 {[%clk 0:02:02]} 32. Bb1 {[%clk 0:00:31]}  Kxg6 {[%clk 0:02:00]} 33. Rf1 {[%clk 0:00:27]}  c3 {[%clk 0:01:57]} 34. Rf5 {[%clk 0:00:26]}  Nxe4 {[%clk 0:01:53]} 35. Rfxe5 {[%clk 0:00:24]}  dxe5 {[%clk 0:01:54]} 36. Rxa5 {[%clk 0:00:22]}  Rd8 {[%clk 0:01:51]} 37. Kh2 {[%clk 0:00:19]}  Bf1 {[%clk 0:01:50]} 38. Rxe5 {[%clk 0:00:19]}  Nxg5 {[%clk 0:01:49]} 39. Re1 {[%clk 0:00:10]}  Bc4 {[%clk 0:01:45]} 40. Kg3 {[%clk 0:00:06]}  Rd2 {[%clk 0:01:45]} 41. Kf4 {[%clk 0:00:05]}  Kf6 {[%clk 0:01:43]} 42. g3 {[%clk 0:00:04]}  e5+ {[%clk 0:01:41]} 43. Ke3 {[%clk 0:00:04]}  Rg2 {[%clk 0:01:38]} 44. Rh1 {[%clk 0:00:01]}  Rxg3+ {[%clk 0:01:39]} 45. Kf2 {[%clk 0:00:01]}  Rf3+ {[%clk 0:01:39]} 46. Kg2 {[%clk 0:00:02]}  Kg6 {[%clk 0:01:35]} 47. Rd1 {[%clk 0:00:02]}  h4 {[%clk 0:01:32]} 48. Rd6+ {[%clk 0:00:02]}  Kf5 {[%clk 0:01:33]} 49. Rc6 {[%clk 0:00:01]}  Bd5 {[%clk 0:01:32]} 50. Rb6 {[%clk 0:00:01]}  Rg3+ {[%clk 0:01:30]} 51. Kf2 {[%clk 0:00:01]}  Ne4+ {[%clk 0:01:30]} 52. Ke2 {[%clk 0:00:01]}  Bc4+ {[%clk 0:01:30]} 53. Ke1 {[%clk 0:00:01]}  Rg1# {[%clk 0:01:30]} 0-1


[Site "https://www.chess.com"]